[Event "Titled Tuesday Blitz May 9 Late 2023"]
[White "Averjanov, Alexey"]
[Black "Bayo Milagro, Alvaro"]
[WhiteFideId "14109867"]
[BlackFideId "22275240"]
[WhiteElo "2703"]
[BlackElo "2270"]
[Result "1-0"]
[Round "07"]
[TimeControl "180+2"]
[Date "2023.05.09"]
[WhiteClock "0:00:25"]
[BlackClock "0:00:00"]

1. d4 {[%clk 0:03:00]}  Nf6 {[%clk 0:03:00]} 2. c4 {[%clk 0:03:01]}  e6 {[%clk 0:02:59]} 3. Nf3 {[%clk 0:03:01]}  d5 {[%clk 0:02:58]} 4. e3 {[%clk 0:03:01]}  Bd6 {[%clk 0:02:55]} 5. Nbd2 {[%clk 0:03:01]}  O-O {[%clk 0:02:55]} 6. Bd3 {[%clk 0:03:01]}  b6 {[%clk 0:02:55]} 7. O-O {[%clk 0:03:02]}  Bb7 {[%clk 0:02:55]} 8. Qe2 {[%clk 0:03:02]}  Nbd7 {[%clk 0:02:49]} 9. e4 {[%clk 0:03:03]}  dxe4 {[%clk 0:02:49]} 10. Nxe4 {[%clk 0:03:03]}  Nxe4 {[%clk 0:02:49]} 11. Bxe4 {[%clk 0:03:04]}  Bxe4 {[%clk 0:02:49]} 12. Qxe4 {[%clk 0:03:05]}  Nf6 {[%clk 0:02:50]} 13. Qe2 {[%clk 0:03:06]}  c5 {[%clk 0:02:49]} 14. Rd1 {[%clk 0:03:06]}  Qc7 {[%clk 0:02:48]} 15. b3 {[%clk 0:02:56]}  Rfd8 {[%clk 0:02:25]} 16. Bb2 {[%clk 0:02:55]}  Qe7 {[%clk 0:02:17]} 17. Rd3 {[%clk 0:02:53]}  Rac8 {[%clk 0:01:58]} 18. Rad1 {[%clk 0:02:50]}  cxd4 {[%clk 0:01:59]} 19. Nxd4 {[%clk 0:02:50]}  Qe8 {[%clk 0:01:09]} 20. h3 {[%clk 0:02:33]}  Bc5 {[%clk 0:01:04]} 21. Nb5 {[%clk 0:02:28]}  a6 {[%clk 0:00:54]} 22. Nd6 {[%clk 0:02:21]}  Bxd6 {[%clk 0:00:53]} 23. Rxd6 {[%clk 0:02:22]}  Rxd6 {[%clk 0:00:53]} 24. Rxd6 {[%clk 0:02:23]}  Rc6 {[%clk 0:00:50]} 25. Qe5 {[%clk 0:02:13]}  h6 {[%clk 0:00:40]} 26. Rd3 {[%clk 0:02:04]}  Rc5 {[%clk 0:00:37]} 27. Qd6 {[%clk 0:01:57]}  Qc6 {[%clk 0:00:30]} 28. Qd8+ {[%clk 0:01:46]}  Kh7 {[%clk 0:00:30]} 29. Bxf6 {[%clk 0:01:44]}  gxf6 {[%clk 0:00:29]} 30. Rd7 {[%clk 0:01:24]}  Rg5 {[%clk 0:00:16]} 31. Rxf7+ {[%clk 0:01:18]}  Rg7 {[%clk 0:00:15]} 32. Rxg7+ {[%clk 0:01:12]}  Kxg7 {[%clk 0:00:16]} 33. Qe7+ {[%clk 0:01:12]}  Kg6 {[%clk 0:00:17]} 34. Qd8 {[%clk 0:01:04]}  b5 {[%clk 0:00:16]} 35. Qg8+ {[%clk 0:01:02]}  Kf5 {[%clk 0:00:15]} 36. Qg4+ {[%clk 0:00:57]}  Ke5 {[%clk 0:00:15]} 37. cxb5 {[%clk 0:00:53]}  axb5 {[%clk 0:00:14]} 38. Qh5+ {[%clk 0:00:53]}  f5 {[%clk 0:00:13]} 39. Qxh6 {[%clk 0:00:51]}  Qc2 {[%clk 0:00:13]} 40. Qe3+ {[%clk 0:00:51]}  Kf6 {[%clk 0:00:12]} 41. a3 {[%clk 0:00:43]}  Qd1+ {[%clk 0:00:11]} 42. Kh2 {[%clk 0:00:43]}  Qd6+ {[%clk 0:00:11]} 43. f4 {[%clk 0:00:39]}  Qxa3 {[%clk 0:00:12]} 44. Qe5+ {[%clk 0:00:38]}  Kf7 {[%clk 0:00:12]} 45. Qxb5 {[%clk 0:00:38]}  Qc1 {[%clk 0:00:10]} 46. Qe5 {[%clk 0:00:36]}  Qb1 {[%clk 0:00:06]} 47. Qc7+ {[%clk 0:00:33]}  Kg6 {[%clk 0:00:06]} 48. Qc4 {[%clk 0:00:32]}  Qe1 {[%clk 0:00:02]} 49. b4 {[%clk 0:00:30]}  Kh5 {[%clk 0:00:00]} 50. b5 {[%clk 0:00:25]} 1-0


[Site "https://www.chess.com"]

[Event "Titled Tuesday Blitz May 9 Late 2023"]
[White "Tatarinov, Dmitry"]
[Black "Haszon, David"]
[WhiteFideId "24160067"]
[BlackFideId "733610"]
[WhiteElo "2326"]
[BlackElo "2210"]
[Result "1-0"]
[Round "07"]
[TimeControl "180+2"]
[Date "2023.05.09"]
[WhiteClock "0:00:20"]
[BlackClock "0:00:00"]

1. e4 {[%clk 0:02:56]}  c5 {[%clk 0:03:00]} 2. Nf3 {[%clk 0:02:56]}  e6 {[%clk 0:02:59]} 3. d4 {[%clk 0:02:56]}  cxd4 {[%clk 0:03:00]} 4. Nxd4 {[%clk 0:02:56]}  Nf6 {[%clk 0:03:01]} 5. Nc3 {[%clk 0:02:56]}  Nc6 {[%clk 0:03:01]} 6. Bf4 {[%clk 0:02:54]}  Bc5 {[%clk 0:02:57]} 7. Nb3 {[%clk 0:02:46]}  Bb4 {[%clk 0:02:56]} 8. Qf3 {[%clk 0:02:45]}  d5 {[%clk 0:02:49]} 9. O-O-O {[%clk 0:02:40]}  O-O {[%clk 0:02:11]} 10. e5 {[%clk 0:02:28]}  Bxc3 {[%clk 0:02:05]} 11. Qxc3 {[%clk 0:02:24]}  Nd7 {[%clk 0:01:48]} 12. Qg3 {[%clk 0:02:21]}  Kh8 {[%clk 0:01:45]} 13. h4 {[%clk 0:02:18]}  a5 {[%clk 0:01:45]} 14. Nd2 {[%clk 0:02:15]}  a4 {[%clk 0:01:40]} 15. a3 {[%clk 0:02:14]}  f6 {[%clk 0:01:27]} 16. exf6 {[%clk 0:01:48]}  Qxf6 {[%clk 0:01:27]} 17. Bg5 {[%clk 0:01:34]}  Qe5 {[%clk 0:01:10]} 18. f4 {[%clk 0:01:32]}  Qc7 {[%clk 0:00:59]} 19. Nf3 {[%clk 0:01:28]}  Nf6 {[%clk 0:00:50]} 20. Bd3 {[%clk 0:01:25]}  Ne4 {[%clk 0:00:41]} 21. Bxe4 {[%clk 0:01:25]}  dxe4 {[%clk 0:00:42]} 22. Ne5 {[%clk 0:01:26]}  Nxe5 {[%clk 0:00:41]} 23. fxe5 {[%clk 0:01:26]}  b5 {[%clk 0:00:34]} 24. h5 {[%clk 0:01:24]}  h6 {[%clk 0:00:31]} 25. Bd2 {[%clk 0:01:23]}  Bb7 {[%clk 0:00:29]} 26. Bb4 {[%clk 0:01:23]}  Rac8 {[%clk 0:00:22]} 27. c3 {[%clk 0:01:12]}  Rf5 {[%clk 0:00:20]} 28. Rd6 {[%clk 0:01:10]}  Qf7 {[%clk 0:00:19]} 29. Rhd1 {[%clk 0:01:09]}  Bd5 {[%clk 0:00:19]} 30. Qg6 {[%clk 0:00:48]}  Qxg6 {[%clk 0:00:18]} 31. hxg6 {[%clk 0:00:49]}  Rxe5 {[%clk 0:00:18]} 32. Rd7 {[%clk 0:00:42]}  Rg5 {[%clk 0:00:17]} 33. Bd6 {[%clk 0:00:37]}  Rxg6 {[%clk 0:00:17]} 34. g3 {[%clk 0:00:37]}  Kh7 {[%clk 0:00:16]} 35. Be5 {[%clk 0:00:37]}  Rg8 {[%clk 0:00:17]} 36. Bf4 {[%clk 0:00:34]}  Rf6 {[%clk 0:00:16]} 37. Kd2 {[%clk 0:00:30]}  Kg6 {[%clk 0:00:16]} 38. Ke3 {[%clk 0:00:31]}  Kf5 {[%clk 0:00:15]} 39. R7xd5+ {[%clk 0:00:20]}  exd5 {[%clk 0:00:15]} 40. Rxd5+ {[%clk 0:00:21]}  Kg4 {[%clk 0:00:15]} 41. Kxe4 {[%clk 0:00:21]}  g5 {[%clk 0:00:14]} 42. Be5 {[%clk 0:00:21]}  Re6 {[%clk 0:00:14]} 43. Rxb5 {[%clk 0:00:22]}  Rge8 {[%clk 0:00:13]} 44. c4 {[%clk 0:00:22]}  h5 {[%clk 0:00:13]} 45. Kd4 {[%clk 0:00:18]}  h4 {[%clk 0:00:13]} 46. gxh4 {[%clk 0:00:19]}  gxh4 {[%clk 0:00:14]} 47. Bc7 {[%clk 0:00:19]}  h3 {[%clk 0:00:14]} 48. c5 {[%clk 0:00:18]}  Rh6 {[%clk 0:00:13]} 49. Rb6 {[%clk 0:00:12]}  Rh5 {[%clk 0:00:10]} 50. Rg6+ {[%clk 0:00:11]}  Kf3 {[%clk 0:00:10]} 51. Rg3+ {[%clk 0:00:11]}  Ke2 {[%clk 0:00:09]} 52. c6 {[%clk 0:00:10]}  h2 {[%clk 0:00:09]} 53. Rg2+ {[%clk 0:00:09]}  Kf1 {[%clk 0:00:09]} 54. Rxh2 {[%clk 0:00:10]}  Rb5 {[%clk 0:00:04]} 55. Kc4 {[%clk 0:00:10]}  Rb3 {[%clk 0:00:03]} 56. Bd6 {[%clk 0:00:10]}  Re4+ {[%clk 0:00:04]} 57. Kd5 {[%clk 0:00:10]}  Re1 {[%clk 0:00:03]} 58. c7 {[%clk 0:00:11]}  Rd1+ {[%clk 0:00:04]} 59. Kc6 {[%clk 0:00:12]}  Rc1+ {[%clk 0:00:03]} 60. Kd7 {[%clk 0:00:12]}  Rd3 {[%clk 0:00:04]} 61. c8=Q {[%clk 0:00:12]}  Rxc8 {[%clk 0:00:04]} 62. Kxc8 {[%clk 0:00:13]}  Rxd6 {[%clk 0:00:04]} 63. Kb7 {[%clk 0:00:14]}  Ke1 {[%clk 0:00:04]} 64. Rh4 {[%clk 0:00:14]}  Rd2 {[%clk 0:00:04]} 65. Rb4 {[%clk 0:00:14]}  Kd1 {[%clk 0:00:04]} 66. Ka6 {[%clk 0:00:15]}  Kc2 {[%clk 0:00:05]} 67. Ka5 {[%clk 0:00:16]}  Rd8 {[%clk 0:00:05]} 68. Kxa4 {[%clk 0:00:17]}  Ra8+ {[%clk 0:00:05]} 69. Kb5 {[%clk 0:00:17]}  Rb8+ {[%clk 0:00:06]} 70. Kc4 {[%clk 0:00:18]}  Rc8+ {[%clk 0:00:07]} 71. Kd5 {[%clk 0:00:18]}  Rd8+ {[%clk 0:00:07]} 72. Kc6 {[%clk 0:00:19]}  Rc8+ {[%clk 0:00:08]} 73. Kb7 {[%clk 0:00:19]}  Rh8 {[%clk 0:00:08]} 74. a4 {[%clk 0:00:20]}  Rh7+ {[%clk 0:00:08]} 75. Ka6 {[%clk 0:00:20]}  Rh6+ {[%clk 0:00:08]} 76. Rb6 {[%clk 0:00:18]}  Rh8 {[%clk 0:00:09]} 77. b4 {[%clk 0:00:18]}  Kb3 {[%clk 0:00:09]} 78. a5 {[%clk 0:00:19]}  Ka4 {[%clk 0:00:09]} 79. b5 {[%clk 0:00:19]}  Ra8+ {[%clk 0:00:09]} 80. Kb7 {[%clk 0:00:19]}  Rxa5 {[%clk 0:00:10]} 81. Kc6 {[%clk 0:00:19]}  Ra8 {[%clk 0:00:00]} 82. Ra6+ {[%clk 0:00:20]} 1-0


[Site "https://www.chess.com"]

[Event "Titled Tuesday Blitz May 9 Late 2023"]
[White "Malicka, Maria"]
[Black "Simonian, Hrair"]
[WhiteFideId "1197576"]
[BlackFideId "13302337"]
[WhiteElo "2227"]
[BlackElo "2447"]
[Result "0-1"]
[Round "07"]
[TimeControl "180+2"]
[Date "2023.05.09"]
[WhiteClock "0:00:52"]
[BlackClock "0:00:17"]

1. e4 {[%clk 0:03:00]}  c5 {[%clk 0:02:55]} 2. Nf3 {[%clk 0:03:00]}  d6 {[%clk 0:02:55]} 3. d4 {[%clk 0:03:00]}  Nf6 {[%clk 0:02:55]} 4. Nc3 {[%clk 0:03:00]}  cxd4 {[%clk 0:02:56]} 5. Nxd4 {[%clk 0:03:01]}  a6 {[%clk 0:02:56]} 6. h4 {[%clk 0:03:00]}  e5 {[%clk 0:02:55]} 7. Nb3 {[%clk 0:03:00]}  Nc6 {[%clk 0:02:51]} 8. f4 {[%clk 0:02:49]}  exf4 {[%clk 0:02:49]} 9. Bxf4 {[%clk 0:02:49]}  Be6 {[%clk 0:02:49]} 10. Qd2 {[%clk 0:02:43]}  Ne5 {[%clk 0:02:47]} 11. O-O-O {[%clk 0:02:42]}  Qc7 {[%clk 0:02:44]} 12. Be2 {[%clk 0:02:41]}  Be7 {[%clk 0:02:43]} 13. Rhg1 {[%clk 0:02:38]}  h5 {[%clk 0:02:41]} 14. Bf3 {[%clk 0:02:37]}  b5 {[%clk 0:02:38]} 15. Nd4 {[%clk 0:02:36]}  Rc8 {[%clk 0:02:14]} 16. Nxe6 {[%clk 0:02:34]}  fxe6 {[%clk 0:02:14]} 17. Kb1 {[%clk 0:02:30]}  b4 {[%clk 0:02:07]} 18. Ne2 {[%clk 0:02:28]}  Nc4 {[%clk 0:02:01]} 19. Qd3 {[%clk 0:02:26]}  O-O {[%clk 0:01:47]} 20. Nd4 {[%clk 0:02:11]}  Qd7 {[%clk 0:01:31]} 21. Bc1 {[%clk 0:02:09]}  Ne5 {[%clk 0:01:30]} 22. Qe2 {[%clk 0:02:08]}  a5 {[%clk 0:01:24]} 23. Bxh5 {[%clk 0:01:58]}  a4 {[%clk 0:01:20]} 24. g4 {[%clk 0:01:58]}  Rc7 {[%clk 0:01:12]} 25. g5 {[%clk 0:01:55]}  Nxh5 {[%clk 0:01:08]} 26. Qxh5 {[%clk 0:01:56]}  g6 {[%clk 0:01:08]} 27. Qe2 {[%clk 0:01:45]}  b3 {[%clk 0:00:49]} 28. axb3 {[%clk 0:01:43]}  axb3 {[%clk 0:00:50]} 29. Nxb3 {[%clk 0:01:43]}  Ra8 {[%clk 0:00:46]} 30. Rd4 {[%clk 0:01:33]}  Qc6 {[%clk 0:00:42]} 31. h5 {[%clk 0:01:25]}  Nf3 {[%clk 0:00:24]} 32. hxg6 {[%clk 0:01:07]}  Nxg1 {[%clk 0:00:20]} 33. Qh2 {[%clk 0:01:03]}  Bf8 {[%clk 0:00:18]} 34. Qxg1 {[%clk 0:00:52]}  Qxc2# {[%clk 0:00:17]} 0-1


[Site "https://www.chess.com"]

[Event "Titled Tuesday Blitz May 9 Late 2023"]
[White "Matinian, Nikita"]
[Black "Pasti, Aron"]
[WhiteFideId "24129100"]
[BlackFideId "785857"]
[WhiteElo "2422"]
[BlackElo "2173"]
[Result "1-0"]
[Round "07"]
[TimeControl "180+2"]
[Date "2023.05.09"]
[WhiteClock "0:00:16"]
[BlackClock "0:00:00"]

1. e4 {[%clk 0:02:51]}  c5 {[%clk 0:02:59]} 2. Nf3 {[%clk 0:02:50]}  e6 {[%clk 0:03:00]} 3. d4 {[%clk 0:02:50]}  cxd4 {[%clk 0:03:00]} 4. Nxd4 {[%clk 0:02:51]}  Nc6 {[%clk 0:03:01]} 5. Nc3 {[%clk 0:02:51]}  Qc7 {[%clk 0:02:59]} 6. Be2 {[%clk 0:02:50]}  Nf6 {[%clk 0:02:59]} 7. Be3 {[%clk 0:02:50]}  Be7 {[%clk 0:02:57]} 8. O-O {[%clk 0:02:50]}  O-O {[%clk 0:02:56]} 9. f4 {[%clk 0:02:50]}  d6 {[%clk 0:02:57]} 10. Kh1 {[%clk 0:02:48]}  b6 {[%clk 0:02:55]} 11. Nxc6 {[%clk 0:02:45]}  Qxc6 {[%clk 0:02:54]} 12. e5 {[%clk 0:02:45]}  Nd5 {[%clk 0:02:52]} 13. Nxd5 {[%clk 0:02:32]}  exd5 {[%clk 0:02:51]} 14. Bf3 {[%clk 0:02:14]}  Bb7 {[%clk 0:02:49]} 15. c3 {[%clk 0:02:14]}  dxe5 {[%clk 0:02:46]} 16. fxe5 {[%clk 0:02:15]}  Bc5 {[%clk 0:02:44]} 17. Bd4 {[%clk 0:02:13]}  f6 {[%clk 0:02:39]} 18. exf6 {[%clk 0:02:11]}  Bxd4 {[%clk 0:02:39]} 19. Qxd4 {[%clk 0:02:06]}  Rxf6 {[%clk 0:02:39]} 20. Rae1 {[%clk 0:02:05]}  Raf8 {[%clk 0:02:36]} 21. Re7 {[%clk 0:02:05]}  R8f7 {[%clk 0:02:17]} 22. Rfe1 {[%clk 0:02:04]}  Rxe7 {[%clk 0:02:01]} 23. Rxe7 {[%clk 0:02:05]}  Kf8 {[%clk 0:01:47]} 24. Re5 {[%clk 0:01:18]}  Re6 {[%clk 0:01:28]} 25. Qf4+ {[%clk 0:01:11]}  Ke8 {[%clk 0:01:15]} 26. Rxe6+ {[%clk 0:00:56]}  Qxe6 {[%clk 0:01:15]} 27. Qb8+ {[%clk 0:00:55]}  Bc8 {[%clk 0:01:15]} 28. h3 {[%clk 0:00:53]}  Ke7 {[%clk 0:00:46]} 29. Qxa7+ {[%clk 0:00:51]}  Kf6 {[%clk 0:00:46]} 30. Qc7 {[%clk 0:00:45]}  Qe1+ {[%clk 0:00:46]} 31. Kh2 {[%clk 0:00:45]}  Qe5+ {[%clk 0:00:47]} 32. Qxe5+ {[%clk 0:00:45]}  Kxe5 {[%clk 0:00:48]} 33. Kg3 {[%clk 0:00:39]}  d4 {[%clk 0:00:48]} 34. cxd4+ {[%clk 0:00:39]}  Kxd4 {[%clk 0:00:49]} 35. Kf4 {[%clk 0:00:40]}  Kd3 {[%clk 0:00:40]} 36. Be4+ {[%clk 0:00:40]}  Kd2 {[%clk 0:00:40]} 37. Bxh7 {[%clk 0:00:40]}  Kc1 {[%clk 0:00:40]} 38. b4 {[%clk 0:00:33]}  Kb2 {[%clk 0:00:41]} 39. Bg8 {[%clk 0:00:33]}  Ka3 {[%clk 0:00:39]} 40. b5 {[%clk 0:00:33]}  Bd7 {[%clk 0:00:31]} 41. Kg5 {[%clk 0:00:30]}  Bxb5 {[%clk 0:00:31]} 42. Kg6 {[%clk 0:00:30]}  Bf1 {[%clk 0:00:31]} 43. Bd5 {[%clk 0:00:22]}  b5 {[%clk 0:00:29]} 44. Kxg7 {[%clk 0:00:22]}  Bc4 {[%clk 0:00:29]} 45. Be4 {[%clk 0:00:15]}  Kxa2 {[%clk 0:00:03]} 46. h4 {[%clk 0:00:15]}  b4 {[%clk 0:00:02]} 47. h5 {[%clk 0:00:15]}  b3 {[%clk 0:00:00]} 48. h6 {[%clk 0:00:16]} 1-0


[Site "https://www.chess.com"]

[Event "Titled Tuesday Blitz May 9 Late 2023"]
[White "Itkis, Boris"]
[Black "Seemann, Jakub"]
[WhiteFideId "1209167"]
[BlackFideId "21874697"]
[WhiteElo "2216"]
[BlackElo "2364"]
[Result "0-1"]
[Round "07"]
[TimeControl "180+2"]
[Date "2023.05.09"]
[WhiteClock "0:00:03"]
[BlackClock "0:01:07"]

1. c4 {[%clk 0:03:00]}  Nf6 {[%clk 0:02:59]} 2. Nf3 {[%clk 0:02:59]}  g6 {[%clk 0:02:59]} 3. b4 {[%clk 0:02:56]}  Bg7 {[%clk 0:03:00]} 4. Bb2 {[%clk 0:02:57]}  O-O {[%clk 0:03:01]} 5. g3 {[%clk 0:02:55]}  a5 {[%clk 0:03:01]} 6. b5 {[%clk 0:02:53]}  b6 {[%clk 0:03:02]} 7. Bg2 {[%clk 0:02:52]}  Bb7 {[%clk 0:03:03]} 8. O-O {[%clk 0:02:53]}  d6 {[%clk 0:03:02]} 9. d3 {[%clk 0:02:51]}  Nbd7 {[%clk 0:03:03]} 10. Nc3 {[%clk 0:02:50]}  e5 {[%clk 0:03:03]} 11. a4 {[%clk 0:02:49]}  Nc5 {[%clk 0:03:03]} 12. Nd2 {[%clk 0:02:48]}  Bxg2 {[%clk 0:03:02]} 13. Kxg2 {[%clk 0:02:49]}  d5 {[%clk 0:03:03]} 14. Qc2 {[%clk 0:02:40]}  d4 {[%clk 0:03:02]} 15. Nd1 {[%clk 0:02:34]}  Re8 {[%clk 0:03:02]} 16. Ba3 {[%clk 0:02:34]}  Nfd7 {[%clk 0:03:01]} 17. Bxc5 {[%clk 0:02:30]}  Nxc5 {[%clk 0:03:01]} 18. Nb3 {[%clk 0:02:30]}  Bf8 {[%clk 0:03:00]} 19. Nxc5 {[%clk 0:02:12]}  Bxc5 {[%clk 0:03:01]} 20. f3 {[%clk 0:02:13]}  h5 {[%clk 0:03:00]} 21. Nf2 {[%clk 0:02:11]}  f5 {[%clk 0:03:00]} 22. h4 {[%clk 0:02:09]}  Qd7 {[%clk 0:03:00]} 23. Rae1 {[%clk 0:02:09]}  Rf8 {[%clk 0:03:00]} 24. Nh3 {[%clk 0:02:09]}  Rae8 {[%clk 0:03:00]} 25. Nf2 {[%clk 0:02:00]}  Bd6 {[%clk 0:02:59]} 26. Qd2 {[%clk 0:01:58]}  Kh7 {[%clk 0:02:56]} 27. Qc1 {[%clk 0:01:55]}  Qe6 {[%clk 0:02:56]} 28. Nh3 {[%clk 0:01:48]}  Kg7 {[%clk 0:02:56]} 29. Nf2 {[%clk 0:01:43]}  Rh8 {[%clk 0:02:48]} 30. Qg5 {[%clk 0:01:38]}  Ref8 {[%clk 0:02:46]} 31. Qc1 {[%clk 0:01:37]}  e4 {[%clk 0:02:41]} 32. fxe4 {[%clk 0:01:34]}  f4 {[%clk 0:02:41]} 33. Nh3 {[%clk 0:01:28]}  fxg3 {[%clk 0:02:32]} 34. Qg5 {[%clk 0:01:26]}  Qg4 {[%clk 0:01:57]} 35. Qxg4 {[%clk 0:01:19]}  hxg4 {[%clk 0:01:57]} 36. Ng5 {[%clk 0:01:20]}  Rxf1 {[%clk 0:01:57]} 37. Rxf1 {[%clk 0:01:21]}  Rxh4 {[%clk 0:01:57]} 38. Rh1 {[%clk 0:01:01]}  Rh2+ {[%clk 0:01:41]} 39. Rxh2 {[%clk 0:01:01]}  gxh2 {[%clk 0:01:41]} 40. Ne6+ {[%clk 0:01:02]}  Kf6 {[%clk 0:01:36]} 41. Nxd4 {[%clk 0:01:03]}  Kg5 {[%clk 0:01:27]} 42. Nc2 {[%clk 0:00:59]}  g3 {[%clk 0:01:20]} 43. e3 {[%clk 0:00:58]}  Kg4 {[%clk 0:01:18]} 44. d4 {[%clk 0:00:50]}  h1=Q+ {[%clk 0:01:14]} 45. Kxh1 {[%clk 0:00:51]}  Kf3 {[%clk 0:01:15]} 46. e5 {[%clk 0:00:51]}  Kf2 {[%clk 0:01:11]} 47. Ne1 {[%clk 0:00:38]}  Kxe1 {[%clk 0:01:11]} 48. Kg2 {[%clk 0:00:38]}  Be7 {[%clk 0:01:07]} 49. Kxg3 {[%clk 0:00:34]}  Ke2 {[%clk 0:01:07]} 50. Kf4 {[%clk 0:00:34]}  Kd3 {[%clk 0:01:08]} 51. d5 {[%clk 0:00:10]}  Kxc4 {[%clk 0:01:08]} 52. Ke4 {[%clk 0:00:03]}  g5 {[%clk 0:01:07]} 0-1


[Site "https://www.chess.com"]

[Event "Titled Tuesday Blitz May 9 Late 2023"]
[White "Mihajlov, Sebastian"]
[Black "Rodriguez Fontecha, Marcos"]
[WhiteFideId "1512110"]
[BlackFideId "2256576"]
[WhiteElo "2478"]
[BlackElo "2249"]
[Result "0-1"]
[Round "07"]
[TimeControl "180+2"]
[Date "2023.05.09"]
[WhiteClock "0:00:05"]
[BlackClock "0:00:11"]

1. e4 {[%clk 0:02:57]}  e6 {[%clk 0:02:59]} 2. d4 {[%clk 0:02:57]}  d5 {[%clk 0:02:59]} 3. Nc3 {[%clk 0:02:58]}  h6 {[%clk 0:02:59]} 4. Bd3 {[%clk 0:02:54]}  Nc6 {[%clk 0:02:58]} 5. Nf3 {[%clk 0:02:53]}  Nb4 {[%clk 0:02:59]} 6. Be2 {[%clk 0:02:45]}  Nf6 {[%clk 0:02:59]} 7. e5 {[%clk 0:02:45]}  Ne4 {[%clk 0:02:59]} 8. Nb1 {[%clk 0:02:46]}  c5 {[%clk 0:02:59]} 9. c3 {[%clk 0:02:47]}  Nc6 {[%clk 0:02:59]} 10. O-O {[%clk 0:02:45]}  Qb6 {[%clk 0:02:58]} 11. b3 {[%clk 0:02:29]}  Bd7 {[%clk 0:02:56]} 12. Be3 {[%clk 0:02:27]}  Rc8 {[%clk 0:02:53]} 13. Nfd2 {[%clk 0:02:20]}  cxd4 {[%clk 0:02:24]} 14. cxd4 {[%clk 0:02:21]}  Nb4 {[%clk 0:02:21]} 15. Nxe4 {[%clk 0:02:18]}  dxe4 {[%clk 0:02:21]} 16. Na3 {[%clk 0:02:13]}  Be7 {[%clk 0:02:06]} 17. Nc4 {[%clk 0:02:13]}  Qd8 {[%clk 0:02:04]} 18. Qd2 {[%clk 0:02:08]}  O-O {[%clk 0:02:00]} 19. f4 {[%clk 0:01:48]}  Nd5 {[%clk 0:01:52]} 20. Bh5 {[%clk 0:01:14]}  b5 {[%clk 0:01:51]} 21. Nb2 {[%clk 0:01:12]}  Ba3 {[%clk 0:01:51]} 22. Nd1 {[%clk 0:01:09]}  g6 {[%clk 0:01:38]} 23. Bg4 {[%clk 0:01:09]}  h5 {[%clk 0:01:39]} 24. Bh3 {[%clk 0:01:06]}  Qh4 {[%clk 0:01:35]} 25. f5 {[%clk 0:01:02]}  Nxe3 {[%clk 0:01:30]} 26. Nxe3 {[%clk 0:00:32]}  gxf5 {[%clk 0:01:30]} 27. Nxf5 {[%clk 0:00:30]}  exf5 {[%clk 0:01:25]} 28. Bxf5 {[%clk 0:00:31]}  e3 {[%clk 0:00:37]} 29. Qxe3 {[%clk 0:00:31]}  Be6 {[%clk 0:00:26]} 30. Qh6 {[%clk 0:00:30]}  Bxf5 {[%clk 0:00:15]} 31. Rf4 {[%clk 0:00:21]}  Rc1+ {[%clk 0:00:12]} 32. Rxc1 {[%clk 0:00:16]}  Bxc1 {[%clk 0:00:13]} 33. Rxh4 {[%clk 0:00:12]}  Bxh6 {[%clk 0:00:12]} 34. Rxh5 {[%clk 0:00:12]}  Be3+ {[%clk 0:00:12]} 35. Kf1 {[%clk 0:00:13]}  Bg6 {[%clk 0:00:12]} 36. Rh4 {[%clk 0:00:13]}  Bd3+ {[%clk 0:00:11]} 37. Ke1 {[%clk 0:00:05]}  Rc8 {[%clk 0:00:11]} 0-1


[Site "https://www.chess.com"]

[Event "Titled Tuesday Blitz May 9 Late 2023"]
[White "Aydincelebi, Kagan"]
[Black "Martinez Reyes, Pedro Ramon"]
[WhiteFideId "6361102"]
[BlackFideId "3901807"]
[WhiteElo "2180"]
[BlackElo "2340"]
[Result "1-0"]
[Round "07"]
[TimeControl "180+2"]
[Date "2023.05.09"]
[WhiteClock "0:01:32"]
[BlackClock "0:00:41"]

1. e4 {[%clk 0:02:58]}  c6 {[%clk 0:02:58]} 2. d4 {[%clk 0:02:58]}  g6 {[%clk 0:02:58]} 3. Nc3 {[%clk 0:02:58]}  Bg7 {[%clk 0:02:58]} 4. Nf3 {[%clk 0:02:58]}  d5 {[%clk 0:02:58]} 5. h3 {[%clk 0:02:59]}  dxe4 {[%clk 0:02:57]} 6. Nxe4 {[%clk 0:03:00]}  Nf6 {[%clk 0:02:57]} 7. Bd3 {[%clk 0:02:58]}  Nxe4 {[%clk 0:02:56]} 8. Bxe4 {[%clk 0:02:59]}  Nd7 {[%clk 0:02:57]} 9. O-O {[%clk 0:02:59]}  Nf6 {[%clk 0:02:57]} 10. Bd3 {[%clk 0:03:00]}  O-O {[%clk 0:02:57]} 11. Re1 {[%clk 0:03:00]}  b6 {[%clk 0:02:48]} 12. Qe2 {[%clk 0:03:00]}  e6 {[%clk 0:02:47]} 13. Bg5 {[%clk 0:02:58]}  Bb7 {[%clk 0:02:47]} 14. Rad1 {[%clk 0:02:57]}  h6 {[%clk 0:02:40]} 15. Bh4 {[%clk 0:02:57]}  Qc7 {[%clk 0:02:31]} 16. Ne5 {[%clk 0:02:43]}  Rae8 {[%clk 0:02:22]} 17. Bg3 {[%clk 0:02:31]}  Qc8 {[%clk 0:02:21]} 18. Bc4 {[%clk 0:02:25]}  Nd5 {[%clk 0:02:14]} 19. Bb3 {[%clk 0:02:24]}  c5 {[%clk 0:02:07]} 20. dxc5 {[%clk 0:02:22]}  bxc5 {[%clk 0:02:04]} 21. Nc4 {[%clk 0:02:21]}  Ba6 {[%clk 0:02:02]} 22. Qf3 {[%clk 0:02:20]}  Bxc4 {[%clk 0:01:57]} 23. Bxc4 {[%clk 0:02:20]}  Bxb2 {[%clk 0:01:56]} 24. Bd6 {[%clk 0:01:58]}  Ne7 {[%clk 0:01:31]} 25. Rb1 {[%clk 0:01:58]}  Bg7 {[%clk 0:01:20]} 26. Rb7 {[%clk 0:01:51]}  Nd5 {[%clk 0:01:12]} 27. Bxd5 {[%clk 0:01:43]}  exd5 {[%clk 0:01:11]} 28. Rxe8 {[%clk 0:01:44]}  Qxb7 {[%clk 0:01:07]} 29. Bxf8 {[%clk 0:01:43]}  Bxf8 {[%clk 0:01:03]} 30. Qf6 {[%clk 0:01:43]}  Qb1+ {[%clk 0:00:49]} 31. Kh2 {[%clk 0:01:42]}  Qc1 {[%clk 0:00:50]} 32. Qd6 {[%clk 0:01:35]}  Kh7 {[%clk 0:00:41]} 33. Rxf8 {[%clk 0:01:32]} 1-0


[Site "https://www.chess.com"]